bitfinex-derivatives/quotes_SOLF0:USTF0_20220110
["timestamp","ask_amount","ask_price","bid_price","bid_amount"]
[1641822392556,2.85335264,135.56,135.55,4.16478616]
[1641822392958,2.85335264,135.62,135.53,4.16478616]
[1641822393158,2.85335264,135.62,135.53,13.94478616]
[1641822393457,2.85335264,135.62,135.54,2.49192487]
[1641822393857,2.85335264,135.62,135.55,4.16478616]
[1641822395661,2.85335264,135.62,135.52,4.16478616]
[1641822395859,9.28835264,135.62,135.52,4.16478616]
[1641822396460,9.28835264,135.62,135.53,2.49390881]
[1641822396663,2.85335264,135.61,135.53,2.49390881]
[1641822397064,10.44435264,135.61,135.54,4.16478616]
[1641822397263,4.0,135.6,135.54,4.16478616]
[1641822397563,6.85335264,135.6,135.54,4.16478616]
[1641822397764,2.85335264,135.6,135.54,4.16478616]
[1641822397963,2.85335264,135.59,135.54,4.16478616]
[1641822398363,2.85335264,135.6,135.52,4.16478616]
[1641822398965,4.0,135.59,135.52,4.16478616]
[1641822399177,4.0,135.58,135.52,4.16478616]
[1641822399367,11.85635264,135.58,135.52,4.16478616]
[1641822399567,15.85635264,135.58,135.52,4.16478616]
[1641822399767,2.85335264,135.57,135.52,4.16478616]
[1641822401773,2.85335264,135.57,135.53,2.49992694]
[1641822402471,2.85335264,135.57,135.54,4.16478616]
[1641822404172,2.85335264,135.57,135.52,4.16478616]
[1641822405173,15.84435264,135.59,135.52,4.16478616]
[1641822405373,25.06652064,135.59,135.53,2.50019461]
[1641822405572,2.85335264,135.58,135.53,2.50019461]
[1641822405973,2.85335264,135.58,135.54,4.16478616]
[1641822406373,2.69142625,135.57,135.54,4.16478616]
[1641822406976,2.85335264,135.56,135.52,4.16478616]
[1641822407380,10.13235264,135.56,135.52,4.16478616]
[1641822407977,2.85335264,135.55,135.52,4.16478616]
[1641822408878,2.85335264,135.55,135.53,2.49987839]
[1641822409177,2.85335264,135.58,135.53,2.49987839]
[1641822409384,65.4404,135.6,135.53,2.49987839]
[1641822409578,15.44455607,135.61,135.54,4.16478616]
[1641822409877,3.68680441,135.6,135.54,4.16478616]
[1641822410476,3.68680441,135.61,135.54,4.16478616]
[1641822410880,3.68680441,135.61,135.55,2.49987839]
[1641822411081,4.0,135.6,135.55,2.49987839]
[1641822411278,9.076,135.6,135.55,2.49987839]
[1641822411480,7.378168,135.59,135.56,4.16478616]
[1641822411877,29.20045002,135.59,135.56,4.16478616]
[1641822412080,21.82228202,135.59,135.56,4.16478616]
[1641822412480,3.68680441,135.58,135.52,4.16478616]
[1641822413482,4.0,135.57,135.52,4.16478616]
[1641822413682,4.0,135.57,135.53,2.49975145]
[1641822413884,3.68680441,135.57,135.53,2.49975145]
[1641822414381,3.68680441,135.57,135.54,4.16478616]
[1641822415383,3.68680441,135.57,135.54,10.36278616]
[1641822415783,3.68680441,135.57,135.54,6.198]
[1641822416586,3.68680441,135.58,135.55,4.16478616]
[1641822416985,3.68680441,135.59,135.55,4.16478616]
[1641822417587,3.68680441,135.59,135.53,68.6733]
[1641822417885,3.68680441,135.59,135.56,4.16478616]
[1641822418486,3.68680441,135.59,135.54,4.16478616]
[1641822419588,3.68680441,135.59,135.55,2.50303647]
[1641822420189,3.68680441,135.6,135.56,4.16478616]
[1641822421690,3.68680441,135.61,135.55,4.16478616]
[1641822422691,3.68680441,135.61,135.56,2.50266681]
[1641822423091,3.68680441,135.62,135.57,4.0]
[1641822423492,3.68680441,135.62,135.58,4.16478616]
[1641822423894,15.44455607,135.64,135.59,4.0]
[1641822424295,15.44455607,135.65,135.59,4.0]
[1641822424894,15.44455607,135.65,135.58,4.0]
[1641822425294,41.26764528,135.68,135.58,4.0]
[1641822425295,15.44455607,135.68,135.6,2.49775992]
[1641822426095,15.44455607,135.67,135.61,4.16617768]
[1641822426296,15.44455607,135.67,135.61,13.95917768]
[1641822426995,15.44455607,135.67,135.62,4.16617768]
[1641822427197,18.13288758,135.69,135.62,8.16617768]
[1641822427597,18.13288758,135.69,135.62,4.16617768]
[1641822428196,18.13288758,135.7,135.63,4.16617768]
[1641822428997,18.13288758,135.7,135.6,4.16617768]
[1641822429196,15.44455607,135.69,135.6,4.16617768]
[1641822429997,18.13288758,135.69,135.6,4.16617768]
[1641822431008,4.0,135.68,135.6,4.16617768]
[1641822431298,7.37327189,135.68,135.6,4.16617768]
[1641822431498,22.81782796,135.68,135.6,4.16617768]
[1641822431698,26.81782796,135.68,135.6,4.16617768]
[1641822432599,18.13288758,135.67,135.6,4.16617768]
[1641822433501,2.68833151,135.67,135.6,4.16617768]
[1641822438003,2.68833151,135.67,135.6,8.16617768]
[1641822438401,2.68833151,135.67,135.61,4.0]
[1641822438602,84.35218758,135.71,135.6,8.16617768]
[1641822438801,84.35218758,135.71,135.61,4.16617768]
[1641822439303,2.58021224,135.7,135.61,8.16617768]
[1641822439501,5.26854375,135.7,135.61,8.16617768]
[1641822439801,5.26854375,135.7,135.62,4.16617768]
[1641822440002,2.68833151,135.69,135.62,4.16617768]
[1641822440203,10.93654375,135.69,135.62,4.16617768]
[1641822440804,5.26854375,135.68,135.6,4.16617768]
[1641822441203,2.58021224,135.67,135.6,4.16617768]
[1641822441804,5.26854375,135.67,135.6,4.16617768]
[1641822442404,2.58021224,135.67,135.6,4.16617768]
[1641822442603,2.58021224,135.66,135.6,4.16617768]
[1641822443205,2.58021224,135.68,135.6,8.16617768]
[1641822443604,2.58021224,135.65,135.6,4.16617768]
[1641822444005,2.6832453,135.67,135.6,4.16617768]
[1641822444507,2.58021224,135.66,135.6,4.16617768]
[1641822444706,8.64921224,135.66,135.6,4.16617768]
[1641822445308,2.58021224,135.65,135.6,4.16617768]
[1641822446408,2.68777475,135.64,135.6,4.16617768]
[1641822446808,2.58021224,135.63,135.6,4.16617768]
[1641822448609,2.58021224,135.64,135.6,4.16617768]
[1641822449511,2.69004181,135.63,135.6,4.16617768]
[1641822449911,2.58021224,135.62,135.6,4.16617768]
[1641822450312,70.1278,135.67,135.6,4.16617768]
[1641822450313,15.44455607,135.66,135.6,4.16617768]
[1641822450817,2.58173393,135.65,135.6,4.16617768]
[1641822451514,2.58173393,135.65,135.6,8.16617768]
[1641822452114,2.58173393,135.65,135.61,4.16617768]
[1641822452315,2.58173393,135.66,135.61,6.66670355]
[1641822452717,2.58173393,135.67,135.62,4.16617768]
[1641822453117,2.6918501,135.65,135.62,4.16617768]
[1641822453617,2.58173393,135.64,135.6,4.16617768]
[1641822454517,2.58173393,135.65,135.6,4.16617768]
[1641822454819,2.58173393,135.65,135.61,2.50114473]
[1641822455819,2.58173393,135.66,135.62,4.16617768]
[1641822456117,2.58173393,135.64,135.62,4.16617768]
[1641822456619,2.58173393,135.66,135.6,4.16617768]
[1641822457118,2.69240042,135.65,135.6,4.16617768]
[1641822457519,2.58173393,135.64,135.6,4.16617768]
[1641822458619,2.58173393,135.64,135.61,2.50171196]
[1641822459220,2.58173393,135.66,135.62,4.16617768]
[1641822460124,2.58173393,135.67,135.62,12.86717768]
[1641822460726,2.58173393,135.67,135.63,4.16617768]
[1641822461525,2.69201822,135.66,135.6,4.16617768]
[1641822461925,2.58173393,135.65,135.6,4.16617768]
[1641822462325,2.58173393,135.65,135.61,2.50145949]
[1641822462725,2.58173393,135.65,135.62,4.16617768]
[1641822462928,2.58173393,135.66,135.62,4.16617768]
[1641822463729,2.58173393,135.66,135.6,4.16617768]
[1641822463928,2.58173393,135.67,135.6,4.16617768]
[1641822464229,2.58173393,135.65,135.6,4.16617768]
[1641822464427,2.58173393,135.65,135.6,8.16617768]
[1641822464628,2.58173393,135.65,135.6,4.16617768]
[1641822464828,2.58173393,135.67,135.6,4.16617768]
[1641822465128,2.69223011,135.66,135.61,2.50142152]
[1641822465729,2.58173393,135.65,135.62,4.16617768]
[1641822467028,2.58173393,135.65,135.59,70.6968]
[1641822467029,2.58173393,135.67,135.6,4.16617768]
[1641822467933,2.6919068,135.66,135.61,2.50111532]
[1641822468331,2.58173393,135.65,135.62,4.16617768]
[1641822469632,2.58173393,135.67,135.6,4.16617768]
[1641822470733,2.69166249,135.66,135.61,2.50088754]
[1641822471236,2.58173393,135.65,135.62,4.16617768]
[1641822472937,2.58173393,135.68,135.62,4.0]
[1641822473136,10.63792428,135.7,135.6,4.16617768]
[1641822473137,15.44455607,135.7,135.64,4.0]
[1641822473337,15.44455607,135.7,135.66,4.0]
[1641822473637,2.58043697,135.69,135.66,9.824]
[1641822473836,2.58043697,135.69,135.66,5.824]
[1641822474036,1.24043697,135.69,135.67,4.16617768]
[1641822474237,41.26764528,135.73,135.67,8.16617768]
[1641822474639,15.57389343,135.72,135.67,8.16617768]
[1641822474838,15.57389343,135.72,135.67,4.0]
[1641822475238,23.47189343,135.72,135.64,78.63109657]
[1641822475442,2.32170559,135.71,135.68,4.16507079]
[1641822475840,2.32170559,135.71,135.65,4.16507079]
[1641822477441,6.32170559,135.71,135.65,4.16507079]
[1641822477641,7.37381558,135.67,135.58,41.26764528]
[1641822477842,18.24881558,135.67,135.58,41.26764528]
[1641822478142,4.0,135.65,135.58,41.26764528]
[1641822478342,14.24881558,135.67,135.58,41.26764528]
[1641822478544,2.68593443,135.66,135.57,4.0]
[1641822478941,3.57295903,135.65,135.58,4.16754485]
[1641822479845,2.68593443,135.64,135.58,4.16754485]
[1641822480442,3.57295903,135.63,135.59,2.50057484]
[1641822480642,3.57295903,135.63,135.59,6.50057484]
[1641822480843,63.2581336,135.7,135.6,4.16754485]
[1641822481242,4.0,135.68,135.6,4.16754485]
[1641822481442,9.141,135.68,135.6,4.16754485]
[1641822481643,13.141,135.68,135.6,4.16754485]
[1641822481842,1.8071069,135.67,135.6,6.66811969]
[1641822482342,1.8071069,135.67,135.61,4.16754485]
[1641822482543,2.68927656,135.66,135.61,4.16754485]
[1641822482742,14.06363591,135.66,135.61,4.16754485]
[1641822483142,1.8071069,135.65,135.57,4.16754485]
[1641822483343,13.69638346,135.65,135.57,4.16754485]
[1641822483943,1.8071069,135.64,135.56,4.16754485]
[1641822484145,4.49638346,135.64,135.56,8.16754485]
[1641822484344,4.49638346,135.64,135.58,4.0]
[1641822484745,4.49638346,135.64,135.57,4.0]
[1641822484942,1.8071069,135.63,135.59,4.16754485]
[1641822485343,1.8071069,135.63,135.58,8.16754485]
[1641822485744,1.8071069,135.63,135.59,4.16754485]
[1641822485945,1.8071069,135.64,135.59,4.16754485]
[1641822486344,1.8071069,135.62,135.6,4.0]
[1641822486543,7.255,135.62,135.59,4.16754485]
[1641822487144,7.255,135.62,135.55,70.6153]
[1641822487747,2.51522531,135.61,135.56,4.16798825]
[1641822488347,2.51522531,135.61,135.56,6.66710611]
[1641822488546,2.51522531,135.64,135.56,6.66710611]
[1641822489047,2.51522531,135.64,135.57,4.16798825]
[1641822489245,2.68766361,135.63,135.57,4.16798825]
[1641822489846,2.51522531,135.62,135.56,4.16798825]
[1641822490049,2.51522531,135.62,135.59,4.0]
[1641822490250,2.51522531,135.62,135.59,7.835]
[1641822490847,2.51522531,135.62,135.6,4.16798825]
[1641822491248,2.51522531,135.67,135.6,4.16798825]
[1641822491649,2.51522531,135.67,135.57,5.921]
[1641822492150,2.51522531,135.67,135.58,4.16798825]
[1641822492550,2.68540559,135.66,135.58,6.66493963]
[1641822492755,10.39740559,135.66,135.58,2.49695138]
[1641822493151,2.51522531,135.65,135.59,4.16798825]
[1641822493552,5.2006309,135.65,135.59,4.16798825]
[1641822493752,4.0,135.64,135.59,4.16798825]
[1641822493952,4.0,135.62,135.57,2.49695138]
[1641822494151,12.586,135.62,135.57,2.49695138]
[1641822494352,4.0,135.61,135.49,112.27014528]
[1641822494755,4.0,135.58,135.49,112.27014528]
[1641822494954,10.234,135.58,135.49,112.27014528]
[1641822495154,6.234,135.58,135.49,112.27014528]
[1641822495355,6.234,135.58,135.49,116.27014528]
[1641822495554,2.9319331,135.57,135.5,2.49703895]
[1641822496354,2.9319331,135.59,135.5,2.49703895]
[1641822496554,6.9319331,135.59,135.5,2.49703895]
[1641822496756,2.9319331,135.59,135.5,2.49703895]
[1641822496956,2.9319331,135.58,135.5,2.49703895]
[1641822497753,2.9319331,135.57,135.5,6.49703895]
[1641822498154,2.9319331,135.56,135.5,6.49703895]
[1641822498554,11.37735153,135.61,135.5,6.49703895]
[1641822498755,19.08135153,135.61,135.5,2.49703895]
[1641822498955,2.51514145,135.6,135.51,2.49703895]
[1641822499157,6.51514145,135.6,135.51,2.49703895]
[1641822499355,2.51514145,135.6,135.51,2.49703895]
[1641822499555,2.51514145,135.6,135.5,2.49703895]
[1641822500155,6.51514145,135.6,135.5,2.49703895]
[1641822500359,2.51514145,135.6,135.5,2.49703895]
[1641822500658,2.51514145,135.59,135.5,2.49703895]
[1641822501159,2.51514145,135.59,135.51,4.0]
[1641822501857,2.51514145,135.6,135.51,4.0]
[1641822502458,2.51514145,135.6,135.52,2.49703895]
[1641822504159,2.51514145,135.61,135.52,2.49703895]
[1641822504559,2.51514145,135.61,135.53,4.0]
[1641822505159,2.51514145,135.61,135.54,4.0]
[1641822505361,2.51514145,135.61,135.55,4.0]
[1641822505662,2.51514145,135.64,135.58,4.0]
[1641822505860,2.51514145,135.64,135.58,11.614]
[1641822506060,2.51514145,135.66,135.58,11.614]
[1641822506460,2.51514145,135.66,135.59,4.0]
[1641822506661,2.51514145,135.66,135.6,4.0]
[1641822507861,2.51514145,135.68,135.61,4.0]
[1641822508064,2.51514145,135.68,135.61,11.989]
[1641822508263,2.51514145,135.68,135.61,7.989]
[1641822508463,2.51514145,135.68,135.64,4.0]
[1641822508662,2.51514145,135.69,135.64,10.135]
[1641822508864,2.51514145,135.69,135.67,4.0]
[1641822509062,2.51514145,135.69,135.67,13.154]
[1641822509263,2.51514145,135.69,135.68,4.16437273]
[1641822509462,15.50917997,135.73,135.68,4.16437273]
[1641822509868,15.50917997,135.73,135.68,8.16437273]
[1641822510465,15.50917997,135.73,135.67,13.154]
[1641822510668,2.67858824,135.75,135.68,4.0]
[1641822511265,3.25904705,135.72,135.68,8.16399252]
[1641822511467,3.25904705,135.72,135.68,4.16399252]
[1641822511665,15.50917997,135.76,135.69,4.16399252]
[1641822511666,3.25904705,135.74,135.69,4.16399252]
[1641822512066,3.25904705,135.75,135.65,13.304]
[1641822512665,3.25904705,135.75,135.66,4.16399252]
[1641822512866,2.67858824,135.73,135.66,4.16399252]
[1641822513367,3.25904705,135.72,135.66,4.16399252]
[1641822513565,3.25904705,135.72,135.66,8.16399252]
[1641822513965,3.25904705,135.72,135.66,4.16399252]
[1641822514166,4.0,135.74,135.67,4.16399252]
[1641822514666,3.25904705,135.73,135.64,4.16399252]
[1641822515265,3.25904705,135.73,135.63,8.16399252]
[1641822515665,3.25904705,135.73,135.65,4.16399252]
[1641822516065,3.25904705,135.73,135.64,4.16399252]
[1641822516266,3.25904705,135.73,135.64,8.16399252]
[1641822516466,3.25904705,135.73,135.64,4.0]
[1641822516866,3.25904705,135.73,135.65,4.16399252]
[1641822517868,3.25904705,135.73,135.64,4.16399252]
[1641822518268,3.25904705,135.73,135.64,8.16399252]
[1641822518769,3.25904705,135.73,135.65,4.16399252]
[1641822522073,3.25904705,135.73,135.65,8.16399252]
[1641822522674,3.25904705,135.73,135.66,4.16399252]
[1641822523480,3.25904705,135.76,135.66,4.16399252]
[1641822523680,3.25904705,135.76,135.66,11.13899252]
[1641822523879,3.25904705,135.75,135.66,11.13899252]
[1641822524482,3.25904705,135.74,135.67,4.16399252]
[1641822525282,90.71899079,135.78,135.67,4.16399252]
[1641822525283,3.25904705,135.73,135.67,4.16399252]
[1641822525684,3.25904705,135.72,135.67,4.16399252]
[1641822526083,3.25904705,135.71,135.67,4.16399252]
[1641822526483,3.25904705,135.7,135.65,4.16399252]
[1641822526884,3.25904705,135.7,135.68,4.0]
[1641822527085,67.8417,135.78,135.68,5.956]
[1641822527285,15.50917997,135.77,135.68,5.956]
[1641822527485,15.50917997,135.77,135.68,9.956]
[1641822527685,15.50917997,135.77,135.68,5.956]
[1641822527887,15.50917997,135.77,135.69,4.0]
[1641822528085,2.02982201,135.76,135.69,8.163374]
[1641822528686,2.02982201,135.76,135.7,4.163374]
[1641822528891,2.02982201,135.76,135.7,8.163374]
[1641822529088,2.02982201,135.78,135.7,8.163374]
[1641822529487,2.02982201,135.78,135.71,4.163374]
[1641822529888,2.02982201,135.78,135.71,8.163374]
[1641822530088,2.02982201,135.78,135.71,15.694374]
[1641822530288,2.02982201,135.78,135.71,11.694374]
[1641822530488,2.02982201,135.78,135.72,4.163374]
[1641822531993,2.67578487,135.77,135.72,4.163374]
[1641822532694,2.02982201,135.76,135.72,4.163374]
[1641822533694,2.02982201,135.77,135.72,4.163374]
[1641822533895,2.02982201,135.77,135.72,12.388374]
[1641822534095,2.02982201,135.79,135.72,12.388374]
[1641822534295,2.02982201,135.79,135.72,16.388374]
[1641822534497,2.02982201,135.79,135.73,4.163374]
[1641822534698,2.68035562,135.76,135.73,4.163374]
[1641822535197,2.02982201,135.75,135.73,4.163374]
[1641822535397,15.50917997,135.79,135.73,4.163374]
[1641822535598,15.50917997,135.79,135.75,4.0]
[1641822535798,15.50917997,135.79,135.75,9.125]
[1641822536399,15.50917997,135.8,135.75,13.125]
[1641822536601,1.94906658,135.78,135.76,8.16233855]
[1641822537003,1.94906658,135.79,135.77,4.16233855]
[1641822537201,1.32906658,135.79,135.77,4.16233855]
[1641822537602,1.32906658,135.78,135.76,4.16233855]
[1641822538003,15.50917997,135.8,135.76,4.16233855]
[1641822538705,1.64002849,135.79,135.76,4.16233855]
[1641822539404,2.849e-05,135.79,135.76,4.16233855]
[1641822539604,15.50917997,135.82,135.78,4.0]
[1641822539804,15.50917997,135.82,135.78,8.688]
[1641822540205,0.00917997,135.82,135.78,8.688]
[1641822540504,10.59590482,135.83,135.78,12.688]
[1641822540705,10.59590482,135.83,135.78,8.688]
[1641822541006,1.21020924,135.82,135.79,4.16106362]
[1641822541407,1.21020924,135.87,135.79,4.16106362]
[1641822542406,1.21020924,135.87,135.79,10.02406362]
[1641822543207,1.21020924,135.87,135.8,4.16106362]
[1641822544009,4.0,135.87,135.8,4.16106362]
[1641822544608,1.21020924,135.86,135.79,4.16106362]
[1641822544908,1.21020924,135.86,135.78,69.9624]
[1641822545308,1.21020924,135.87,135.79,4.16107533]
[1641822545508,4.0,135.86,135.79,4.16107533]
[1641822545909,1.21020924,135.87,135.79,4.16107533]
[1641822546510,1.21020924,135.85,135.79,4.16107533]
[1641822546913,1.21020924,135.86,135.79,4.16107533]
[1641822547311,1.21020924,135.84,135.79,4.16107533]
[1641822547711,1.21020924,135.83,135.79,4.16107533]
[1641822548615,8.04320924,135.83,135.79,4.16107533]
[1641822548815,1.21020924,135.82,135.77,4.16107533]
[1641822549217,1.21020924,135.81,135.77,4.16107533]
[1641822549918,1.21020924,135.8,135.76,4.16107533]
[1641822550319,1.21020924,135.8,135.72,4.0]
[1641822550520,1.21020924,135.8,135.71,4.0]
[1641822550821,1.21020924,135.79,135.73,4.16261635]
[1641822551025,1.21020924,135.79,135.75,4.0]
[1641822551223,1.21020924,135.79,135.75,13.36]
[1641822551421,1.21020924,135.78,135.75,13.36]
[1641822551823,108.01394528,135.86,135.76,4.16261635]
[1641822552023,41.26764528,135.86,135.76,74.17901635]
[1641822552322,41.26764528,135.86,135.76,70.17901635]
[1641822552725,11.36322804,135.87,135.76,66.0164]
[1641822553123,0.83241056,135.86,135.77,4.16205279]
[1641822553522,46.10005584,135.86,135.77,4.16205279]
[1641822553723,42.10005584,135.86,135.77,4.16205279]
[1641822553929,0.83241056,135.85,135.77,4.16205279]
[1641822554724,0.83241056,135.85,135.77,8.16205279]
[1641822554924,0.83241056,135.85,135.77,4.16205279]
[1641822555829,0.83241056,135.87,135.77,4.16205279]
[1641822556127,0.83241056,135.87,135.77,8.16205279]
[1641822556527,0.83241056,135.87,135.77,4.16205279]
[1641822556726,0.83241056,135.87,135.78,4.16205279]
[1641822557232,42.10005584,135.87,135.78,4.16205279]
[1641822557930,0.83241056,135.87,135.78,4.16205279]
[1641822558129,0.83241056,135.86,135.78,4.16205279]
[1641822558328,0.83241056,135.86,135.77,8.16205279]
[1641822558529,0.83241056,135.86,135.77,4.16205279]
[1641822558932,42.10005584,135.87,135.78,4.16205279]
[1641822559131,4.0,135.85,135.78,4.16205279]
[1641822559431,4.0,135.84,135.77,4.16205279]
[1641822559632,4.0,135.83,135.77,4.16205279]
[1641822559834,4.0,135.8,135.7,1.84]
[1641822560032,9.877,135.8,135.69,70.6966]
[1641822560833,0.83241056,135.79,135.7,4.16302989]
[1641822561835,4.83241056,135.79,135.7,4.16302989]
[1641822562035,4.0,135.78,135.7,4.16302989]
[1641822562236,4.0,135.77,135.7,4.16302989]
[1641822562436,10.11,135.77,135.7,4.16302989]
[1641822562636,4.0,135.76,135.7,4.16302989]
[1641822562842,4.0,135.72,135.61,41.26764528]
[1641822563036,13.053,135.72,135.61,41.26764528]
[1641822563235,4.0,135.71,135.61,41.26764528]
[1641822563434,4.0,135.7,135.61,41.26764528]
[1641822563637,9.053,135.72,135.61,41.26764528]
[1641822563836,4.0,135.71,135.6,78.87674998]
[1641822564235,1.63043843,135.7,135.6,78.87674998]
[1641822564437,4.0,135.69,135.6,78.87674998]
[1641822564637,13.132,135.69,135.6,10.11364998]
[1641822564840,13.132,135.69,135.58,48.63847155]
[1641822565041,1.63043843,135.68,135.58,7.37082627]
[1641822565240,4.0,135.67,135.58,7.37082627]
[1641822565646,5.63043843,135.67,135.58,7.37082627]
[1641822566043,5.63043843,135.67,135.58,17.49286033]
[1641822566243,1.63043843,135.66,135.58,17.49286033]
[1641822566449,1.63043843,135.66,135.58,10.12203406]
[1641822566645,1.63043843,135.65,135.58,10.12203406]
[1641822566845,1.63043843,135.65,135.57,68.6024]
[1641822567047,4.0,135.69,135.57,66.7594]
[1641822567446,11.37218475,135.7,135.57,66.7594]
[1641822567649,1.21466853,135.68,135.58,4.0]
[1641822568048,5.21466853,135.69,135.58,10.12188925]
[1641822568249,6.385,135.68,135.58,10.12188925]
[1641822568447,7.59966853,135.68,135.58,10.12188925]
[1641822569049,1.21466853,135.67,135.58,10.12188925]
[1641822569650,1.21466853,135.67,135.57,66.7594]
[1641822569851,1.21466853,135.67,135.58,4.0]
[1641822570254,1.21466853,135.69,135.58,4.0]
[1641822571950,1.21466853,135.69,135.57,66.7594]
[1641822572151,5.21466853,135.69,135.57,66.7594]
[1641822572551,1.21466853,135.69,135.57,66.7594]
[1641822572852,1.21466853,135.68,135.57,66.7594]
[1641822573051,1.21466853,135.68,135.6,4.0]
[1641822573253,1.21466853,135.69,135.61,4.0]
[1641822573450,1.21466853,135.69,135.6,23.33935824]
[1641822573652,1.21466853,135.7,135.6,23.33935824]
[1641822573852,1.21466853,135.7,135.61,4.0]
[1641822574253,1.21466853,135.72,135.6,19.33935824]
[1641822574652,1.21466853,135.72,135.6,21.18135824]
[1641822574853,1.21466853,135.72,135.6,19.33935824]
[1641822575653,1.21466853,135.74,135.6,19.33935824]
[1641822576955,1.21466853,135.74,135.6,13.43973985]
[1641822577956,1.21466853,135.74,135.61,4.1650786]
[1641822578556,1.21466853,135.74,135.62,71.3948]
[1641822578755,1.21466853,135.74,135.62,77.9708]
[1641822578955,1.21466853,135.74,135.63,4.1650786]
[1641822580759,2.66727,135.73,135.63,4.1650786]
[1641822580959,8.47527,135.73,135.63,4.1650786]
[1641822581260,5.808,135.73,135.63,4.1650786]
[1641822581459,1.21466853,135.72,135.63,4.1650786]
[1641822582560,1.21466853,135.74,135.63,4.1650786]
[1641822583863,2.6681219,135.73,135.63,4.1650786]
[1641822584063,9.7121219,135.73,135.63,4.1650786]
[1641822584266,1.21466853,135.72,135.63,4.1650786]
[1641822585566,16.7076281,135.74,135.63,4.1650786]
[1641822586068,3.88617363,135.73,135.63,4.1650786]
[1641822586566,1.21466853,135.72,135.63,4.1650786]
[1641822587066,7.32166853,135.72,135.63,4.1650786]
[1641822587868,1.21466853,135.71,135.63,4.1650786]
[1641822588067,3.89147605,135.71,135.63,4.1650786]
[1641822588768,1.21466853,135.7,135.63,4.1650786]
[1641822589268,1.21466853,135.71,135.63,4.1650786]
[1641822589668,3.90034781,135.69,135.63,4.1650786]
[1641822590069,1.21466853,135.68,135.63,4.1650786]
[1641822590870,1.21466853,135.7,135.63,4.1650786]
[1641822591370,16.7076281,135.7,135.64,2.50417385]
[1641822591669,1.21466853,135.69,135.65,4.1650786]
[1641822592170,2.69093144,135.68,135.65,4.1650786]
[1641822592570,1.21466853,135.67,135.63,4.1650786]
[1641822593573,1.21466853,135.67,135.64,2.50440882]
[1641822594173,1.21466853,135.69,135.65,4.1650786]
[1641822595171,1.21466853,135.69,135.65,7.86e-05]
[1641822595172,2.69141849,135.68,135.65,7.86e-05]
[1641822595571,2.69141849,135.68,135.63,7.86e-05]
[1641822595973,18.18437806,135.68,135.61,2.50492091]
[1641822596773,2.87993204,135.67,135.62,4.16592445]
[1641822596975,32.60797907,135.67,135.62,4.16592445]
[1641822597175,32.60797907,135.67,135.62,2.445e-05]
[1641822597674,29.72804703,135.67,135.62,2.445e-05]
[1641822598478,18.18437806,135.66,135.62,2.445e-05]
[1641822598678,22.31416912,135.66,135.62,2.445e-05]
[1641822599077,4.12979106,135.65,135.59,2.445e-05]
[1641822599276,4.12979106,135.65,135.59,15.49298402]
[1641822599478,4.12979106,135.65,135.59,22.86324259]
[1641822600082,4.12979106,135.68,135.6,2.445e-05]
[1641822600280,4.12979106,135.68,135.6,17.99790493]
[1641822600479,22.86514432,135.7,135.6,17.99790493]
[1641822600879,4.12901387,135.69,135.61,2.445e-05]
[1641822601281,22.31090931,135.69,135.61,2.445e-05]
[1641822601682,4.12901387,135.68,135.6,2.445e-05]
[1641822602081,6.81794974,135.68,135.6,2.50494536]
[1641822602681,6.81794974,135.67,135.6,2.445e-05]
[1641822603081,4.12901387,135.66,135.6,2.445e-05]
[1641822603983,7.983,135.66,135.6,2.445e-05]
[1641822604382,4.12901387,135.65,135.6,2.445e-05]
[1641822604884,2.68949894,135.64,135.6,2.445e-05]
[1641822605383,4.12901387,135.63,135.58,2.50494536]
[1641822605585,12.12701387,135.63,135.58,2.50494536]
[1641822605986,4.12901387,135.62,135.58,2.50494536]
[1641822607187,4.12901387,135.62,135.57,2.445e-05]
[1641822608188,2.68857634,135.61,135.57,2.445e-05]
[1641822608389,2.68857634,135.61,135.55,2.50210082]
[1641822608591,4.12901387,135.6,135.55,2.50210082]
[1641822608990,12.25801387,135.6,135.55,2.50210082]
[1641822609396,4.12901387,135.59,135.55,2.50210082]
[1641822610999,4.12901387,135.59,135.55,2.445e-05]
[1641822612202,4.12901387,135.59,135.52,2.445e-05]
[1641822612601,4.12901387,135.59,135.51,2.445e-05]
[1641822613001,4.12901387,135.59,135.51,2.49616473]
[1641822618607,11.03701387,135.59,135.51,2.49616473]
[1641822619309,4.12901387,135.58,135.51,2.445e-05]
[1641822623314,4.12901387,135.59,135.51,2.445e-05]
[1641822624816,4.12901387,135.59,135.51,7.45002445]
[1641822625220,4.12901387,135.6,135.52,2.445e-05]
[1641822625520,4.12901387,135.6,135.52,2.49408383]
[1641822626017,7.37626319,135.63,135.52,2.49408383]
[1641822626018,11.50527706,135.63,135.52,2.49408383]
[1641822626420,4.12901387,135.62,135.52,2.49405938]
[1641822626721,7.37762367,135.6,135.52,2.49405938]